Cogmind - Beta 10.2 --- EXPLORER MODE // 2022.01.10 @ 21:47:27 Player: xerxia Result: Self-destructed Performance ------------- Evolutions (7) 3500 Regions Visited (14) 2800 Robots Destroyed (111) 555 Value Destroyed (5654) 5654 Prototype IDs (10) 200 Alien Tech Used (0) 0 Bonus (676) 676 TOTAL SCORE: 13385 Bonus ------- High Alert Combat Kills 44 Follower Combat Kills 632 Cogmind --------- Core Integrity 1089/1300 Matter 42/300 Energy 282/1140 System Corruption 10% Temperature Cool (196) Movement Treading (185) Ox2 Location -3/Research Parts ------- > --- POWER (2) -------- Particle Reactor > --- PROPULSION (4) --- Advanced Medium Treads > --- UTILITY (13) ----- Disposable Heat Sink Coolant Injector High-capacity Storage Unit High-capacity Storage Unit Advanced Energy Well Inertial Stasis Machine Improved Cloaking Device Improved Focal Shield > --- WEAPON (3) ------- Light Antimatter Cannon Linear Accelerator Gamma Bomb Array > --- INVENTORY (20) --- Light Neutrino Core Light Neutrino Core Improved Medium Treads Advanced Heat Sink Gamma Rifle Heavy Gauss Cannon Heavy Shock Bomb Launcher Gamma Bomb Array Micro-nuke Launcher Heavy Pick Peak State ------------ > --- POWER ------------ Fusion Reactor Particle Reactor > --- PROPULSION ------- Improved Medium Treads Advanced Medium Treads Advanced Medium Treads Advanced Medium Treads > --- UTILITY ---------- Improved Heat Sink Advanced Heat Sink Disposable Heat Sink Coolant Injector High-capacity Storage Unit High-capacity Storage Unit Advanced Energy Well Inertial Stasis Machine Experimental ECM Suite Improved Cloaking Device Improved Light Armor Plating Layered Light Armor Plating Improved Focal Shield > --- WEAPON ----------- Nova Cannon Light Antimatter Cannon Gamma Bomb Array > --- INVENTORY -------- Light Neutrino Core Light Neutrino Core Improved Medium Treads Advanced Heat Sink Gamma Rifle Heavy Gauss Cannon Linear Accelerator Heavy Shock Bomb Launcher Gamma Bomb Array Gamma Bomb Array Micro-nuke Launcher Heavy Pick [Rating: 133] Favorites ----------- Power Ion Engine Engine Ion Engine Power Core Light Neutrino Core Reactor Fusion Reactor Propulsion Light Treads Treads Light Treads Utility Large Storage Unit Device Cooling System Storage Large Storage Unit Protection Layered Light Armor Plating Weapon Gauss Cannon Energy Gun EM Pulse Gun Energy Cannon Improved EM Pulse Cannon Ballistic Gun Light Assault Rifle Ballistic Cannon Gauss Cannon Launcher Heavy Rocket Launcher Build | -11 -10 -10 -9 -9 -8 -7 -6 -5 -5 -5 -5 -5 -4 -3 ------- Run | Scr Mat Min Mat Min Mat Fac Fac Fac Ext Cet Arc Hub Fac Res Slots Evolved 15 | . 1 . 2 . 2 2 2 2 . . . . 2 2 Power 1 | . 1 . . . . . . . . . . . . . Propulsion 2 | . . . . . . 1 1 . . . . . . . Utility 11 | . . . 2 . 1 1 1 2 . . . . 2 2 Weapon 1 | . . . . . 1 . . . . . . . . . Parts Attached 92 | 4 5 2 4 2 8 9 6 2 4 3 3 6 13 21 Power 14 | 1 1 . . 1 3 1 . . . . 1 4 . 2 Engine 9 | 1 1 . . 1 3 1 . . . . . 2 . . Core 3 | . . . . . . . . . . . 1 2 . . Reactor 2 | . . . . . . . . . . . . . . 2 Propulsion 13 | 2 . . . . . 2 1 . 3 . . 1 3 1 Treads 13 | 2 . . . . . 2 1 . 3 . . 1 3 1 Leg . | . . . . . . . . . . . . . . . Wheel . | . . . . . . . . . . . . . . . Hover . | . . . . . . . . . . . . . . . Flight . | . . . . . . . . . . . . . . . Utility 44 | 1 2 1 3 1 1 4 4 2 1 3 1 . 6 14 Device 17 | . . . 1 1 . 2 1 . 1 2 . . 1 8 Storage 11 | 1 1 . 1 . . . . . . . 1 . 2 5 Processor . | . . . . . . . . . . . . . . . Hackware . | . . . . . . . . . . . . . . . Protection 16 | . 1 1 1 . 1 2 3 2 . 1 . . 3 1 Artifact . | . . . . . . . . . . . . . . . Weapon 21 | . 2 1 1 . 4 2 1 . . . 1 1 4 4 Energy Gun 3 | . 2 1 . . . . . . . . . . . . Energy Cannon 4 | . . . . . 1 1 . . . . . . 1 1 Ballistic Gun 1 | . . . 1 . . . . . . . . . . . Ballistic Cannon 8 | . . . . . 2 1 . . . . 1 1 2 1 Launcher 5 | . . . . . 1 . 1 . . . . . 1 2 Special Weapon . | . . . . . . . . . . . . . . . Impact Weapon . | . . . . . . . . . . . . . . . Slashing Weapon . | . . . . . . . . . . . . . . . Piercing Weapon . | . . . . . . . . . . . . . . . Special Melee Weapon . | . . . . . . . . . . . . . . . Unidentified Prototypes 10 | . . . . . 1 . . . . 2 . 1 2 4 Parts Lost 23 | . . . 1 1 . . . . . . 1 4 1 15 Power 5 | . . . . 1 . . . . . . 1 1 . 2 Propulsion 4 | . . . . . . . . . . . . 1 . 3 Utility 9 | . . . 1 . . . . . . . . 1 . 7 Weapon 5 | . . . . . . . . . . . . 1 1 3 Highest Loss Streak 11 | . . . 1 1 . . . . . . 1 3 1 11 Average Slot Usage (%) 99 | . 95 100 99 99 99 99 99 100 99 99 100 97 99 98 Engine 11 | . 24 25 20 19 15 13 12 11 11 11 7 7 . . Core 2 | . . . . . . . . . . . 2 2 10 5 Treads 20 | . 25 25 20 20 16 21 25 22 21 22 22 21 20 17 Device 13 | . . . 10 10 8 14 11 11 11 15 22 22 19 23 Storage 15 | . 12 12 20 20 16 14 12 11 11 11 12 16 20 20 Protection 15 | . 10 12 9 10 16 13 17 27 27 22 14 10 14 12 Energy Gun 4 | . 23 25 20 10 6 . . . . . . . . . Energy Cannon 2 | . . . . . 1 7 6 5 5 5 1 . . 1 Ballistic Gun 1 | . . . . 10 4 . . . . . . . . . Ballistic Cannon 5 | . . . . . 2 7 6 5 5 5 8 11 9 7 Launcher 4 | . . . . . 8 7 6 5 5 5 5 4 5 3 Naked Turns . | . . . . . . . . . . . . . . . Heaviest Build 142 | 13 33 33 50 49 72 83 89 94 95 95 94 89 95 142 Greatest Support 136 | 40 40 40 40 40 40 60 82 82 107 123 123 123 126 136 Greatest Overweight (x) 4 | 4 . . 1 1 1 1 1 1 1 . . . . 1 Average Overweight (x) . | . . . 1 1 1 1 1 1 . . . . . . Largest Inventory Capacity 20 | 8 10 10 16 16 16 16 16 16 16 16 16 16 16 20 Average Capacity 15 | 7 8 10 15 16 16 16 16 16 16 16 16 16 16 18 Most Carried 19 | 6 9 9 11 12 16 16 16 15 16 16 16 15 16 19 Average Carried 13 | 4 3 8 10 11 12 15 13 14 15 15 14 13 13 15 Final Capacity 20 | 8 10 10 16 16 16 16 16 16 16 16 16 16 16 20 Final Carried 16 | 6 9 9 9 10 16 14 16 14 16 16 14 15 16 10 Class Distribution -------------------- 86% | Hacker-Mutant 13% | Hacker-Tank Dominant Class ---------------- Hacker-Mutant | -10/Materials Hacker-Mutant | -10/Mines Hacker-Mutant | -9/Materials Hacker-Mutant | -9/Mines Hacker-Mutant | -8/Materials Hacker-Mutant | -7/Factory Hacker-Tank | -6/Factory Hacker-Mutant | -5/Factory Hacker-Mutant | -5/Extension Hacker-Mutant | -5/Cetus Hacker-Mutant | -5/Archives Hacker-Mutant | -5/Hub_04(d) Hacker-Mutant | -4/Factory Hacker-Mutant | -3/Research Resources | -11 -10 -10 -9 -9 -8 -7 -6 -5 -5 -5 -5 -5 -4 -3 ----------- Run | Scr Mat Min Mat Min Mat Fac Fac Fac Ext Cet Arc Hub Fac Res Matter Collected 3536 | 159 131 120 20 47 46 261 190 79 211 296 177 338 753 708 Remotely . | . . . . . . . . . . . . . . . Salvage Created 4568 | . 58 77 140 70 122 293 215 . 396 244 219 388 876 1470 Parts 196 | . 1 4 8 . 4 10 7 . 16 10 1 24 37 74 Haulers Intercepted . | . . . . . . . . . . . . . . . Recyclers Shooed 4 | . . . . . . . . . . . . . . 4 Parts Field Recycled . | . . . . . . . . . . . . . . . Retrieved Matter . | . . . . . . . . . . . . . . . Parts Self-Destructed . | . . . . . . . . . . . . . . . Prevented . | . . . . . . . . . . . . . . . Kills | -11 -10 -10 -9 -9 -8 -7 -6 -5 -5 -5 -5 -5 -4 -3 ------- Run | Scr Mat Min Mat Min Mat Fac Fac Fac Ext Cet Arc Hub Fac Res Combat Hostiles Destroyed 92 | . . 3 1 4 3 6 6 . 6 9 4 10 16 24 Guns 6 | . . 1 1 4 . . . . . . . . . . Cannons 66 | . . . . . 2 5 5 . 4 6 3 9 13 19 AOE 16 | . . 2 . . . 1 1 . 1 3 . 1 3 4 Classes Destroyed 15 | . 1 2 1 1 1 1 . . 3 . . 3 1 1 Worker 6 | . . . . . . . . . . . . 3 1 2 Builder 8 | . . . . . . . . . . . . 2 1 5 Tunneler 2 | . . . . . . . . . 1 . . . 1 . Recycler 3 | . 1 . 1 . . . . . . . . . 1 . Operator 2 | . . . . . . . . . . . . 1 . 1 Watcher 2 | . . . . . . . . . 1 1 . . . . Swarmer 14 | . . 2 . . . . 2 . . 4 . . 3 3 Grunt 27 | . . 1 . . 1 2 4 . 2 2 . 7 5 3 Brawler 1 | . . . . . . . . . . . . . . 1 Duelist 2 | . . . . . 1 . . . . . . . . 1 Sentry 15 | . . . 1 . 1 2 . . 1 . 4 2 2 2 Hunter 14 | . . . . . . 2 . . 1 2 . 1 4 4 Programmer 10 | . . . . . . . . . . . . . 2 8 Behemoth 4 | . . . . . . . . . 2 . . . . 2 Cetus Guard 1 | . . . . . . . . . . 1 . . . . Assembled 4 | . . . . 4 . . . . . . . . . . Best Kill Streak 15 | . 1 2 1 2 2 2 2 . 5 4 3 5 4 15 Combat Bots Only 10 | . . 2 1 2 2 2 2 . 3 4 3 3 3 10 Max Kills in Single Turn 6 | . 1 2 1 1 1 1 1 . 1 3 1 4 3 6 Gunslinging . | . . . . . . . . . . . . . . . Exploded 3 | . . 2 . . . 1 1 . 1 3 . 1 2 3 Melee . | . . . . . . . . . . . . . . . Uniques/NPCs Destroyed . | . . . . . . . . . . . . . . . Combat | -11 -10 -10 -9 -9 -8 -7 -6 -5 -5 -5 -5 -5 -4 -3 -------- Run | Scr Mat Min Mat Min Mat Fac Fac Fac Ext Cet Arc Hub Fac Res Damage Taken 6937 | . 15 121 99 210 243 260 222 . 399 496 546 836 835 2655 Core 427 | . 5 9 9 7 33 13 . . 16 9 11 59 45 211 Absorbed by Shields 217 | . . . . . . . . . 86 131 . . . . Core Remaining (%) 96 | 100 . 94 . 96 94 98 100 . . . . 90 96 . Volleys Fired 273 | . 5 7 7 12 15 15 12 . 15 21 21 38 39 66 Largest 3 | . 2 2 2 2 3 3 3 . 3 3 3 3 3 3 Hottest 253 | . 90 90 90 60 111 144 150 . 156 156 156 144 177 253 Shots Fired 588 | . 7 14 14 24 31 32 31 . 35 52 43 78 84 143 Gun 69 | . 7 14 14 24 10 . . . . . . . . . Cannon 461 | . . . . . 20 30 24 . 30 42 42 76 78 119 Launcher 58 | . . . . . 1 2 7 . 5 10 1 2 6 24 Special . | . . . . . . . . . . . . . . . Kinetic 341 | . . . . 12 15 15 12 . 15 21 30 76 65 80 Thermal 68 | . 2 7 7 . . . . . . . . . 13 39 Explosive 28 | . . . . . 1 2 7 . 5 10 1 2 . . Electromagnetic 151 | . 5 7 7 12 15 15 12 . 15 21 12 . 6 24 Robot Hit Streak 75 | . 7 14 18 22 25 53 75 . 20 26 27 20 27 70 Robot Miss Streak 2 | . . 1 . 1 1 . 1 . 1 2 1 1 1 1 Penetration Max 1 | . . . . . . . . . . . . 1 1 . Secondary Targets 2 | . . . . 2 . . . . . . . . . . Max Gunslinging Chain 1 | . . . . 1 . . . . . . . . . . Shots Hit Robots 507 | . 7 12 13 21 25 28 25 . 32 41 40 70 73 120 Core Hits 275 | . 1 5 4 11 4 12 11 . 20 30 11 31 41 94 Critical Hits 35 | . . . . . 1 3 1 . 2 1 2 10 10 5 Critical Kills 15 | . . . . . . 1 . . 1 1 1 4 6 1 Critical Parts Destroyed 17 | . . . . . 1 2 1 . . . . 6 4 3 Melee Attacks . | . . . . . . . . . . . . . . . Impact . | . . . . . . . . . . . . . . . Slashing . | . . . . . . . . . . . . . . . Piercing . | . . . . . . . . . . . . . . . Sneak Attacks . | . . . . . . . . . . . . . . . Combat Hostiles . | . . . . . . . . . . . . . . . Follow-up Attacks . | . . . . . . . . . . . . . . . Damage Inflicted 17696 | . 93 184 140 199 557 690 921 . 1321 1820 1072 2564 2552 5583 Guns 604 | . 93 126 140 199 46 . . . . . . . . . Cannons 12520 | . . . . . 461 621 546 . 798 868 1035 1943 2170 4078 Explosions 4501 | . . 58 . . 50 69 375 . 523 952 37 560 372 1505 Melee . | . . . . . . . . . . . . . . . Ramming 71 | . . . . . . . . . . . . 61 10 . Kinetic 8597 | . . . . 76 256 266 216 . 410 379 769 1943 1689 2593 Thermal 2533 | . 24 108 64 . 37 56 . . . . . . 592 1652 Explosive 2473 | . . . . . 13 13 375 . 523 952 37 560 . . Electromagnetic 4022 | . 69 76 76 123 251 355 330 . 388 489 266 . 261 1338 Impact . | . . . . . . . . . . . . . . . Slashing . | . . . . . . . . . . . . . . . Piercing . | . . . . . . . . . . . . . . . Highest Corruption 10 | . . . . . . . 1 . . . . . 1 10 Average Corruption 1 | . . . . . . . 1 . . . . . 1 1 Corruption Purged . | . . . . . . . . . . . . . . . Effects 15 | . . . . . . . 2 . . . . . 3 10 Message Errors 4 | . . . . . . . 1 . . . . . 2 1 Matter Fused 2 | . . . . . . . . . . . . . . 2 Energy Discharges 1 | . . . . . . . 1 . . . . . . . Data Loss (minor) 1 | . . . . . . . . . . . . . . 1 Targeting Errors 7 | . . . . . . . . . . . . . 1 6 Overload Shots . | . . . . . . . . . . . . . . . Overflow Damage 491 | . . . . . 17 . 4 . 40 52 . 166 49 163 Projectiles 391 | . . . . . 17 . 2 . 40 28 . 118 23 163 Explosions 100 | . . . . . . . 2 . . 24 . 48 26 . Melee . | . . . . . . . . . . . . . . . Knockbacks 63 | . . . . . 1 6 2 . . 3 . 18 13 20 Impact . | . . . . . . . . . . . . . . . Kinetic 55 | . . . . . 1 6 2 . . 3 . 15 11 17 Secondary 8 | . . . . . . . . . . . . 3 2 3 Self-Inflicted Damage 289 | . . 26 . . 29 34 . . 11 . . 3 55 131 Shots 31 | . . 1 . . 1 1 . . 1 . . 1 1 25 Rammed 10 | . . . . . . . . . . . . 9 1 . Targets Rammed 10 | . . . . . . . . . . . . 9 1 . Kicked . | . . . . . . . . . . . . . . . Crushed . | . . . . . . . . . . . . . . . Highest Temperature 348 | . 108 261 75 20 348 90 39 . 199 197 75 16 194 302 Average Temperature 73 | . 41 113 30 9 133 49 17 . 82 82 36 4 52 99 Received Heat Transfer 1597 | . . 54 36 . 108 114 129 . 91 81 162 306 129 387 Effects 1 | . . . . . 1 . . . . . . . . . Shutdowns 1 | . . . . . 1 . . . . . . . . . Siege Activations . | . . . . . . . . . . . . . . . Robots Corrupted 4 | . . . . . 1 . . . 1 . 1 . . 1 Combat Hostiles 4 | . . . . . 1 . . . 1 . 1 . . 1 Parts Fried 11 | . . . . . 1 1 . . 2 . 3 . . 4 Impact Corruptions . | . . . . . . . . . . . . . . . Robots Melted . | . . . . . . . . . . . . . . . Combat Hostiles . | . . . . . . . . . . . . . . . Parts Melted . | . . . . . . . . . . . . . . . Heat Transferred 2314 | . 74 148 185 . 50 . . . . . . . 375 1482 Parts Sabotaged . | . . . . . . . . . . . . . . . Parts Stolen . | . . . . . . . . . . . . . . . Parts Stripped . | . . . . . . . . . . . . . . . Power Chain Reactions 5 | . . 1 . . 1 1 . . . . . . . 2 Missiles Intercepted . | . . . . . . . . . . . . . . . Alert | -11 -10 -10 -9 -9 -8 -7 -6 -5 -5 -5 -5 -5 -4 -3 ------- Run | Scr Mat Min Mat Min Mat Fac Fac Fac Ext Cet Arc Hub Fac Res Peak Influence 499 | . 5 111 66 15 98 212 182 14 399 499 207 365 329 401 Initial 71 | . . 1 . 15 . 31 39 . 4 71 55 49 46 5 Average 92 | . . 69 19 7 16 67 73 8 138 344 160 138 180 89 Maximum Alert Level 2 | . . . . . . 1 . . 1 2 1 1 1 2 Low Security (%) 83 | 100 100 100 100 100 100 95 100 100 91 12 53 70 53 77 Level 1 15 | . . . . . . 4 . . 8 73 46 29 46 22 Level 2 . | . . . . . . . . . . 14 . . . . Level 3 . | . . . . . . . . . . . . . . . Level 4 . | . . . . . . . . . . . . . . . Level 5 . | . . . . . . . . . . . . . . . High Security . | . . . . . . . . . . . . . . . Max Security . | . . . . . . . . . . . . . . . Squads Dispatched 22 | . . . . 1 . 2 1 . 2 . . 4 3 9 Investigation 4 | . . . . 1 . 2 . . . . . . 1 . Extermination 5 | . . . . . . . 1 . . . . . 1 3 Reinforcement 10 | . . . . . . . . . 2 . . 4 1 3 Assault . | . . . . . . . . . . . . . . . Garrison 3 | . . . . . . . . . . . . . . 3 Intercept . | . . . . . . . . . . . . . . . Construction Impeded 6 | . . . . . . . . . 1 . . 2 1 2 Haulers Reinforced 1 | . . . . . . . . . . . . 1 . . Stealth | -11 -10 -10 -9 -9 -8 -7 -6 -5 -5 -5 -5 -5 -4 -3 --------- Run | Scr Mat Min Mat Min Mat Fac Fac Fac Ext Cet Arc Hub Fac Res Distress Signals 3 | . . . . . . . . . 1 1 . . . 1 Communications Jammed . | . . . . . . . . . . . . . . . Distress Signals . | . . . . . . . . . . . . . . . Times Spotted 153 | . 1 5 2 8 6 9 9 . 14 15 6 20 20 38 Peak Tracking Total 13 | . 2 2 1 13 3 3 2 . 4 5 2 7 4 10 Tactical Retreats 10 | . . 1 . . 1 2 1 . 1 1 . 2 . 1 Traps | -11 -10 -10 -9 -9 -8 -7 -6 -5 -5 -5 -5 -5 -4 -3 ------- Run | Scr Mat Min Mat Min Mat Fac Fac Fac Ext Cet Arc Hub Fac Res Traps Triggered 12 | . 2 . 2 . . 1 1 . . . . . . 6 Indirectly 6 | . . . . . . . . . . . . . . 6 Trap Hack Attempts . | . . . . . . . . . . . . . . . Triggered . | . . . . . . . . . . . . . . . Disarmed . | . . . . . . . . . . . . . . . Reprogrammed . | . . . . . . . . . . . . . . . Reused . | . . . . . . . . . . . . . . . Traps Extracted . | . . . . . . . . . . . . . . . Installed . | . . . . . . . . . . . . . . . Triggered 2 | . . . . . 1 1 . . . . . . . . Machines | -11 -10 -10 -9 -9 -8 -7 -6 -5 -5 -5 -5 -5 -4 -3 ---------- Run | Scr Mat Min Mat Min Mat Fac Fac Fac Ext Cet Arc Hub Fac Res Machines Disabled 21 | . . . . . . . . . 1 3 1 5 7 4 Max in Single Turn 4 | . . . . . . . . . 1 1 1 2 4 1 Machines Sabotaged . | . . . . . . . . . . . . . . . Garrisons Compromised . | . . . . . . . . . . . . . . . Overloaded Fab Kills . | . . . . . . . . . . . . . . . Fab Network Shutdowns . | . . . . . . . . . . . . . . . Hacking | -11 -10 -10 -9 -9 -8 -7 -6 -5 -5 -5 -5 -5 -4 -3 --------- Run | Scr Mat Min Mat Min Mat Fac Fac Fac Ext Cet Arc Hub Fac Res Machines Accessed 15 | . . . . 1 . 1 . 2 3 3 1 2 2 . Terminals 12 | . . . . . . 1 . 2 3 3 . 2 1 . Fabricators . | . . . . . . . . . . . . . . . Repair Stations 1 | . . . . . . . . . . . . . 1 . Recycling Units . | . . . . . . . . . . . . . . . Scanalyzers . | . . . . . . . . . . . . . . . Garrison Access . | . . . . . . . . . . . . . . . Total Hacks 18 | . . . . 1 . 2 . 2 3 4 1 2 3 . Successful 16 | . . . . 1 . . . 2 3 4 1 2 3 . Failed 2 | . . . . . . 2 . . . . . . . . Catastrophic . | . . . . . . . . . . . . . . . Database Lockouts . | . . . . . . . . . . . . . . . Manual . | . . . . . . . . . . . . . . . Terminals 14 | . . . . . . 2 . 2 3 4 . 2 1 . Fabricators . | . . . . . . . . . . . . . . . Repair Stations 2 | . . . . . . . . . . . . . 2 . Recycling Units . | . . . . . . . . . . . . . . . Scanalyzers . | . . . . . . . . . . . . . . . Garrison Access . | . . . . . . . . . . . . . . . Terminal Hacks 14 | . . . . 1 . . . 2 3 4 1 2 1 . Record 5 | . . . . . . . . . . 3 1 1 . . Open Door 5 | . . . . 1 . . . . 3 1 . . . . Alert Level 2 | . . . . . . . . 1 . . . . 1 . Recall Reinforcements 1 | . . . . . . . . 1 . . . . . . Hauler Manifests 1 | . . . . . . . . . . . . 1 . . Fabricator Hacks . | . . . . . . . . . . . . . . . Repair Station Hacks 2 | . . . . . . . . . . . . . 2 . Scan Component 1 | . . . . . . . . . . . . . 1 . Repair 1 | . . . . . . . . . . . . . 1 . Recycling Unit Hacks . | . . . . . . . . . . . . . . . Scanalyzer . | . . . . . . . . . . . . . . . Garrison Access Hacks . | . . . . . . . . . . . . . . . Unauthorized Hacks . | . . . . . . . . . . . . . . . Terminals . | . . . . . . . . . . . . . . . Fabricators . | . . . . . . . . . . . . . . . Repair Stations . | . . . . . . . . . . . . . . . Recycling Units . | . . . . . . . . . . . . . . . Scanalyzers . | . . . . . . . . . . . . . . . Garrison Access . | . . . . . . . . . . . . . . . Data Cores Recovered 1 | . . . . . . . . . . . . 1 . . Used . | . . . . . . . . . . . . . . . Hacking Detections 5 | . . . . . . 1 . 1 . 1 . 1 1 . Full Trace Events 1 | . . . . . . 1 . . . . . . . . Feedback Events . | . . . . . . . . . . . . . . . Feedback Blocked . | . . . . . . . . . . . . . . . Robot Schematics Acquired . | . . . . . . . . . . . . . . . Robots Built . | . . . . . . . . . . . . . . . Matter . | . . . . . . . . . . . . . . . Time . | . . . . . . . . . . . . . . . Total Robot Build Rating . | . . . . . . . . . . . . . . . Part Schematics Acquired . | . . . . . . . . . . . . . . . Parts Built . | . . . . . . . . . . . . . . . Matter . | . . . . . . . . . . . . . . . Time . | . . . . . . . . . . . . . . . Total Part Build Rating . | . . . . . . . . . . . . . . . Parts Repaired 1 | . . . . . . . . . . . . . 1 . Time 32 | . . . . . . . . . . . . . 32 . Parts Recycled . | . . . . . . . . . . . . . . . Recycled Matter . | . . . . . . . . . . . . . . . Retrieved Matter . | . . . . . . . . . . . . . . . Retrieved Components . | . . . . . . . . . . . . . . . Parts Scanalyzed . | . . . . . . . . . . . . . . . Part Schematics Acquired . | . . . . . . . . . . . . . . . Parts Damaged . | . . . . . . . . . . . . . . . Bothacking | -11 -10 -10 -9 -9 -8 -7 -6 -5 -5 -5 -5 -5 -4 -3 ------------ Run | Scr Mat Min Mat Min Mat Fac Fac Fac Ext Cet Arc Hub Fac Res Used RIF Installer . | . . . . . . . . . . . . . . . Robots Hacked . | . . . . . . . . . . . . . . . Non-combat . | . . . . . . . . . . . . . . . Combat . | . . . . . . . . . . . . . . . Robot Hacks Applied . | . . . . . . . . . . . . . . . Relay Couplers Released . | . . . . . . . . . . . . . . . Robots Rewired . | . . . . . . . . . . . . . . . Allies Hacked . | . . . . . . . . . . . . . . . Hacks Repelled . | . . . . . . . . . . . . . . . Allies | -11 -10 -10 -9 -9 -8 -7 -6 -5 -5 -5 -5 -5 -4 -3 -------- Run | Scr Mat Min Mat Min Mat Fac Fac Fac Ext Cet Arc Hub Fac Res Total Allies 8 | . . 3 . . . . . . 5 . . . . . Largest Group 4 | . . 3 2 1 . . . . 4 3 . . . . Highest-Rated Group 239 | . . 40 32 16 . . . . 239 202 . . . . Highest-Rated Ally 156 | . . 16 16 16 . . . . 156 143 . . . . Total Orders . | . . . . . . . . . . . . . . . Ally Attacks 108 | . . 7 . 3 . . . . 68 30 . . . . Total Damage 2540 | . . 82 . 45 . . . . 1685 728 . . . . Kills 15 | . . 1 . . . . . . 9 5 . . . . Allies Corrupted . | . . . . . . . . . . . . . . . Allies Melted 1 | . . . . 1 . . . . . . . . . . Intel | -11 -10 -10 -9 -9 -8 -7 -6 -5 -5 -5 -5 -5 -4 -3 ------- Run | Scr Mat Min Mat Min Mat Fac Fac Fac Ext Cet Arc Hub Fac Res Robot Analysis Total . | . . . . . . . . . . . . . . . Derelict Logs Recovered 4 | . . 2 . 2 . . . . . . . . . . Drone Launches . | . . . . . . . . . . . . . . . Drone Recoveries . | . . . . . . . . . . . . . . . Exploration | -11 -10 -10 -9 -9 -8 -7 -6 -5 -5 -5 -5 -5 -4 -3 ------------- Run | Scr Mat Min Mat Min Mat Fac Fac Fac Ext Cet Arc Hub Fac Res Turns Passed 7614 | 96 271 530 228 780 650 570 812 209 558 402 182 497 802 1027 Spaces Moved 3794 | 52 154 312 111 411 313 272 423 117 284 200 69 211 388 477 Core 15 | 15 . . . . . . . . . . . . . . Treads 3779 | 37 154 312 111 411 313 272 423 117 284 200 69 211 388 477 Legs . | . . . . . . . . . . . . . . . Wheels . | . . . . . . . . . . . . . . . Hover . | . . . . . . . . . . . . . . . Flight . | . . . . . . . . . . . . . . . Fastest Speed 50 | 50 160 160 180 180 180 180 178 178 165 165 165 163 155 148 Average Speed 169 | 159 160 160 180 180 180 180 178 178 171 165 165 164 158 158 Slowest Speed 250 | 250 160 160 180 180 180 183 178 178 190 165 165 165 162 175 Overloaded Moves . | . . . . . . . . . . . . . . . Propulsion Burnouts . | . . . . . . . . . . . . . . . Robots Hopped . | . . . . . . . . . . . . . . . Cave-ins Triggered . | . . . . . . . . . . . . . . . Exploration Rate (%) 37 | 4 33 83 15 80 27 11 19 5 61 79 85 33 14 14 Regions Visited 14 Branch Regions 6 Pre-discovered Areas 2 | . . 1 . 1 . . . . . . . . . . Known Exits Taken 14 | 1 1 1 1 1 1 1 1 1 1 1 1 1 1 . Unknown Exits Taken . | . . . . . . . . . . . . . . . Scrap Searched . | . . . . . . . . . . . . . . . Spaces Dug . | . . . . . . . . . . . . . . . Terrain Destroyed 316 | . . 3 . . 13 27 26 . 29 110 12 24 51 21 Melee . | . . . . . . . . . . . . . . . Projectile 40 | . . . . . 2 3 1 . . 2 1 6 10 15 AOE 276 | . . 3 . . 11 24 25 . 29 108 11 18 41 6 Terrain Rammed . | . . . . . . . . . . . . . . . Walls Destroyed . | . . . . . . . . . . . . . . . Machines Disabled . | . . . . . . . . . . . . . . . Actions | -11 -10 -10 -9 -9 -8 -7 -6 -5 -5 -5 -5 -5 -4 -3 --------- Run | Scr Mat Min Mat Min Mat Fac Fac Fac Ext Cet Arc Hub Fac Res Total 4456 | 65 172 329 126 430 376 326 459 118 327 229 96 281 494 628 Wait 127 | . . 7 . 2 11 11 8 . 15 . 1 6 36 30 Move 3780 | 51 153 311 110 410 312 271 422 116 283 199 68 210 387 477 Hop . | . . . . . . . . . . . . . . . Pick Up 111 | 10 8 2 4 3 19 10 7 . 6 3 1 7 13 18 Fast Attach . | . . . . . . . . . . . . . . . Attach 84 | 4 4 2 4 2 7 9 6 2 4 3 3 6 12 16 Detach 1 | . . . . . . . 1 . . . . . . . Swap 8 | . 1 . . . 1 . . . . . . . 1 5 Drop 62 | . 1 . 1 1 11 10 3 . 4 3 2 5 5 16 Fire 273 | . 5 7 7 12 15 15 12 . 15 21 21 38 39 66 Melee . | . . . . . . . . . . . . . . . Ram . | . . . . . . . . . . . . . . . Kick . | . . . . . . . . . . . . . . . Crush 10 | . . . . . . . . . . . . 9 1 . Escape Stasis . | . . . . . . . . . . . . . . . Rewire . | . . . . . . . . . . . . . . . Trap . | . . . . . . . . . . . . . . . Miscellaneous . | . . . . . . . . . . . . . . . Route ------- -11/Scrapyard -10/Materials -10/Mines -9/Materials (discovered 2 exits: Mat / *Min) -9/Mines -8/Materials -7/Factory -6/Factory -5/Factory -5/Extension (discovered 2 exits: *Fac / *Cet) -5/Cetus -5/Archives (discovered 3 exits: *Fac / *Hub x2) -5/Hub_04(d) -4/Factory -3/Research History --------- Turn | Location | Event 18 | -11/Scrapyard | Identified exit to Materials 18 | -11/Scrapyard | Discovered exit to Materials (range 15) 97 | -11/Scrapyard | Entered Materials 97 | -10/Materials | Evolved 1 slot: Power x1 225 | -10/Materials | Identified exit to Mines 225 | -10/Materials | Discovered exit to Mines (range 16) 302 | -10/Materials | Build established: Hacker-Mutant 368 | -10/Materials | Entered Mines 507 | -10/Mines | Learned location of Recycling (-9) 550 | -10/Mines | Assisted by bots powering up and referring to "LRC-V3" 635 | -10/Mines | Learned location of 1 exit from Materials 887 | -10/Mines | Identified exit to Materials 887 | -10/Mines | Discovered exit to Materials (range 6) 898 | -10/Mines | Entered Materials 898 | -9/Materials | Accompanied by 2 allies 898 | -9/Materials | Evolved 2 slots: Utility x2 899 | -9/Materials | Identified exit to Materials 1057 | -9/Materials | Identified exit to Mines 1057 | -9/Materials | Discovered exit to Mines (range 14) 1126 | -9/Materials | Entered Mines 1126 | -9/Mines | Accompanied by 1 ally 1133 | -9/Mines | Received a Rocket Launcher from a helpful Derelict 1200 | -9/Mines | Learned Materials stockpile data 1270 | -9/Mines | Met a Derelict shopkeep closing up shop 1423 | -9/Mines | Learned location of Storage (-9) 1706 | -9/Mines | Assembled infested the area 1711 | -9/Mines | Assisted by a Guerilla fighting off Assembled 1862 | -9/Mines | Learned 2 Materials zone layouts 1893 | -9/Mines | Discovered exit to Materials (range 8) 1906 | -9/Mines | Entered Materials 1906 | -8/Materials | Evolved 2 slots: Utility x1, Weapon x1 2465 | -8/Materials | Identified exit to Factory 2465 | -8/Materials | Discovered exit to Factory (range 4) 2556 | -8/Materials | Entered Factory 2556 | -7/Factory | Evolved 2 slots: Propulsion x1, Utility x1 3054 | -7/Factory | Identified exit to Factory 3054 | -7/Factory | Discovered exit to Factory (range 15) 3126 | -7/Factory | Entered another Factory area 3126 | -6/Factory | Evolved 2 slots: Propulsion x1, Utility x1 3642 | -6/Factory | Build established: Hacker-Tank 3899 | -6/Factory | Identified exit to Factory 3899 | -6/Factory | Discovered exit to Factory (range 15) 3938 | -6/Factory | Entered another Factory area 3938 | -5/Factory | Evolved 2 slots: Utility x2 4017 | -5/Factory | Build established: Hacker-Mutant 4118 | -5/Factory | Identified exit to Extension 4118 | -5/Factory | Discovered exit to Extension (range 14) 4147 | -5/Factory | Entered Extension 4240 | -5/Extension | Rescued a captive Derelict 4241 | -5/Extension | Rescued a captive Derelict 4271 | -5/Extension | Rescued A7 4465 | -5/Extension | Rescued a captive Derelict 4471 | -5/Extension | Spotted B-75 Beast 4476 | -5/Extension | Rescued a captive Derelict 4493 | -5/Extension | Spotted B-75 Beast 4503 | -5/Extension | Destroyed B-75 Beast 4509 | -5/Extension | Destroyed B-75 Beast 4677 | -5/Extension | Identified exit to Cetus 4677 | -5/Extension | Discovered exit to Cetus (range 16) 4679 | -5/Extension | Identified exit to Factory 4679 | -5/Extension | Discovered exit to Factory (range 15) 4705 | -5/Extension | Entered Cetus 4705 | -5/Cetus | Accompanied by 3 allies (A7) 4710 | -5/Cetus | Acquired a Cetus Manufacturing Module code from A7 4727 | -5/Cetus | Spotted Cetus Guard 4727 | -5/Cetus | Spotted Cetus Guard 4730 | -5/Cetus | Spotted Cetus Guard 4730 | -5/Cetus | Spotted Cetus Guard 4736 | -5/Cetus | Allies destroyed Cetus Guard 4740 | -5/Cetus | Allies destroyed Cetus Guard 4750 | -5/Cetus | Allies destroyed Cetus Guard 4753 | -5/Cetus | Destroyed Cetus Guard 4795 | -5/Cetus | Extracted ID and sensor layout for unrecognized location from A7's data core 4846 | -5/Cetus | Cetus Manufacturing Module disabled 5082 | -5/Cetus | Identified exit to Archives 5082 | -5/Cetus | Discovered exit to Archives (range 15) 5107 | -5/Cetus | Entered Archives 5223 | -5/Archives | Discovered exit to Factory (range 14) 5233 | -5/Archives | Unable to access archive contents 5241 | -5/Archives | Identified exit to Hub_04(d) 5241 | -5/Archives | Discovered exit to Hub_04(d) (range 14) 5251 | -5/Archives | Unable to access archive contents 5259 | -5/Archives | Discovered exit to Hub_04(d) (range 14) 5289 | -5/Archives | Entered Hub_04(d) 5692 | -5/Hub_04(d) | Discovered exit to Factory (range 11) 5770 | -5/Hub_04(d) | Lost 3 parts (1n1u1w) 5786 | -5/Hub_04(d) | Entered Factory 5786 | -4/Factory | Evolved 2 slots: Utility x2 6037 | -4/Factory | Repaired Cooling System 6177 | -4/Factory | Spotted B-86 Titan 6524 | -4/Factory | Identified exit to Research 6524 | -4/Factory | Discovered exit to Research (range 15) 6588 | -4/Factory | Entered Research 6588 | -3/Research | Evolved 2 slots: Utility x2 6684 | -3/Research | Spotted B-86 Titan 6752 | -3/Research | Found Gamma Bomb Array 6759 | -3/Research | Found Gamma Bomb Array 6762 | -3/Research | Found Gamma Bomb Array 6763 | -3/Research | Destroyed B-86 Titan 7180 | -3/Research | Found Prototype Device 7368 | -3/Research | Garrison activated, responded to threat 7411 | -3/Research | Spotted B-86 Titan 7495 | -3/Research | Destroyed 10 combat bots 7536 | -3/Research | Identified Exp. ECM Suite 7599 | -3/Research | Destroyed B-86 Titan 7603 | -3/Research | System corruption reached 10% 7615 | -3/Research | Self-destructed Last Messages --------------- 07604_ K-01 Serf collects debris. 07607_ P-80 Master resets U-05 Engineer, system corruption cleaned. 07607_ K-01 Serf collects debris. 07608_ P-80 Master resets U-05 Engineer, system corruption cleaned. 07609_ System corrupted: Matter fused (-7). 07609_ P-80 Master knocked back. 07609_ System corrupted: Lgt. Antimatter Cannon targeting data glitched. 07609_ Destroyed Prototype Energy Gun. 07609_ P-80 Master knocked back. 07610_ K-01 Serf collects debris. 07612_ P-80 Master resets G-73 Enforcer, system corruption cleaned. 07612_ K-01 Serf collects debris. 07612_ P-80 Master destroyed. 07612_ Adv. Medium Treads destroyed. 07612_ K-01 Serf collects debris. 07613_ Adv. Heat Sink destroyed. 07613_ K-01 Serf collects debris. 07614_ Slug penetrates Ion Accelerator. 07615_ K-01 Serf collects debris. 07615_ Fusion Reactor destroyed. Map ----- +----------------------------------------------------+ | ?????????????????????????????????????????????????? | | ?????????????????????????????????????????????????? | | ?????????????????????????????????????????????????? | | ?????????????????????????????????????????????????? | | ?????????????????????????????????????????????????? | | ?????????????????????????????????????????????????? | | ?????????????????????????????????????????????????? | | ?????????????????????????????????????????????????? | | ?????????????????????????????????????????????????? | | ?????????????????###?????????????????????????????? | | ???????????????? """"" ?????????????????????? | | ???????????????? "" ???????????????????? | | ???????????????? ????????????????? | | ???????????????? =! ??????????????? | | ????????????????#gg =! #?????????????? | | ????????????????# #?????????????? | | ???????????????## g [ #?????????????? | | ???????????????#; =% #?????????????? | | ????????????????# =k #?????????????? | | ????????????????# *![ #?????????????? | | ????????????????# !%[ #?????????????? | | ????????????????# ==! ###???????????? | | ?????????######## % #???????????? | | ?????????# # #???????????? | | ?????????# # #?????????????? | | ?????????#"" # * @ #????????????? | | ?????????#"" ! # !%/ #?????????????? | | ?????????#"" # =""" % #?????????????? | | ?????????#S #% """ #?????????????? | | ?????????#"" # """ #?????????????? | | ?????????#"" # = """h #?????????????? | | ?????????# " ! #[ * """ hk k / ????????????? | | ?????????# ! + # =???????????? | | ########## # #? ???????????? | | ""G""" # ! !# #?????????????? | | "" """ = # # ######+########?????????????? | | # !!* # #???????????????????????????? | | #+#+#### #???????????????????????????? | | # ! % #???????????????????????????? | | + ! #???????????????????????????? | | # ! %#???????????????????????????? | | "" """ # #???????????????????????????? | | "" """ #### ### #???????????????????????????? | | "" """ #??# #?# ?????????????????????????? | | #??# #?# ????????????????????????? | | #??? #?# ????????????????????????? | | ####/#####??? #?# ?????????????????????????? | | ???# #???????+#?####+##??????????????????????????? | | ???# #???????????????????????????????????????????? | | ???# #???????????????????????????????????????????? | +----------------------------------------------------+ Best States ------------- Heat Dissipation 101 Coolant Potential 115 Energy Generation 41 Energy Capacity 1900 Matter Stores 400 Matter Capacity 400 Sight Range 16 Terrain Scan Density 10 ECM Strength 5 Cloak Strength 3 Additional Mass Support 16 Armor Coverage 675 Resistance: KI 60 Resistance: TH 35 Resistance: EX 35 Resistance: EM 35 Resistance: I 35 Resistance: S 35 Resistance: P 35 Propulsion Shielding 33 Weapon Shielding 33 Evasion (%) 40 Recoil Reduction 4 Offensive Hacking 20 Item Schematics ----------------- None Robot Schematics ------------------ None Fabricated ------------ Nothing Alien Tech Used ----------------- None Achievements -------------- Novice Programmer Prison Break Shopping List Challenges ------------ None Game ------ Seed BarrageLongswordCutter Manual? 0 Play Time 01:26:02 Cumulative 20.3 hours Start 2022.01.10 @ 20:15:52 End 2022.01.10 @ 21:47:27 Sessions 1 Manual Loads 0 Difficulty Explorer Special Mode None Game No. 20 Rogue 0 Adventurer 0 Explorer 20 Win Type - Total 0 Types 0/0/0/0/0/0/0/0/0 Lore% 3 Gallery% 29 Achievement% 19 Wizard Run 0 Options --------- ASCII 0 Keyboard 0 Movement Numpad Keybinds 0 Fullscreen 1 Font 12/Smallcaps Map View 83x54 Tactical HUD 1 Map Filters NONE Filters NONE Steam 1 RUN: 89b804cf-a6c5-4e40-b305-f35a0fda97f8